bitfinex/quotes_SOLUSD_20240725
["timestamp","ask_amount","ask_price","bid_price","bid_amount"]
[1721918040616,6.0217,170.23,170.14,14.6935]
[1721918040820,41.4217,170.23,170.06,1.17526502]
[1721918041022,5.8771,170.16,170.11,5.8784]
[1721918041193,14.6875,170.22,170.1,14.6964]
[1721918041396,5.8769,170.16,170.11,5.8785]
[1721918041806,16.4668,170.26,170.12,1.97751584]
[1721918042006,5.874,170.25,170.2,20.5632]
[1721918042211,6.3406,170.29,170.2,14.6879]
[1721918042714,5.8728,170.28,170.23,14.6859]
[1721918043026,6.3406,170.29,170.19,14.6888]
[1721918043240,6.3406,170.29,170.15,14.6922]
[1721918043241,41.7406,170.29,170.15,14.6922]
[1721918043446,41.7406,170.29,170.12,16.67291584]
[1721918043611,41.7406,170.29,170.12,1.97751584]
[1721918043932,14.6825,170.28,170.17,14.6907]
[1721918044123,6.3406,170.29,170.2,14.6885]
[1721918044321,35.4,170.32,170.18,1.17493377]
[1721918044534,5.8731,170.27,170.23,14.6859]
[1721918044715,5.8733,170.26,170.2,5.8751]
[1721918044912,16.404,170.33,170.1,35.1128]
[1721918044913,35.4,170.3,170.11,1.17504911]
[1721918045137,51.804,170.33,170.12,3.15274124]
[1721918045343,51.804,170.33,170.23,5.8743]
[1721918045550,5.8748,170.22,170.12,1.97751584]
[1721918045848,16.404,170.33,170.17,14.6905]
[1721918046014,16.404,170.33,170.13,14.6937]
[1721918046210,5.8761,170.18,170.13,14.6937]
[1721918046434,5.8764,170.18,170.13,14.6937]
[1721918046645,5.8761,170.19,170.13,5.8777]
[1721918046882,14.6871,170.22,170.13,5.8778]
[1721918046883,50.8761,170.18,170.13,5.8778]
[1721918047155,50.8761,170.18,170.12,20.5724]
[1721918047156,45.0,170.18,170.12,20.5724]
[1721918047456,45.0,170.18,170.14,14.6929]
[1721918047612,6.5105,170.23,170.09,50.57019762]
[1721918047811,45.0,170.22,170.1,1.97774835]
[1721918048042,45.0,170.22,170.13,14.6942]
[1721918048242,50.0885,170.21,170.1,1.97774835]
[1721918048545,14.6904,170.18,170.08,5.8795]
[1721918048749,35.4,170.2,170.05,0.7987949]
[1721918049039,5.8754,170.2,170.15,5.8771]
[1721918049223,45.0,170.22,170.16,5.8768]
[1721918049224,5.875,170.22,170.16,5.8768]
[1721918049428,5.8737,170.25,170.16,1.17530576]
[1721918049619,5.8741,170.24,170.17,14.6911]
[1721918049820,6.6244,170.29,170.2,14.6885]
[1721918050023,21.3059,170.29,170.2,14.6885]
[1721918050227,6.6244,170.29,170.2,14.6885]
[1721918050443,31.0822,170.33,170.2,14.6885]
[1721918050716,5.8735,170.26,170.21,5.875]
[1721918050930,35.4,170.31,170.2,14.6885]
[1721918051149,14.6833,170.27,170.17,1.9769348]
[1721918051323,35.4,170.27,170.12,14.6951]
[1721918051533,6.14341539,170.32,170.13,23.15272492]
[1721918051761,14.6796,170.31,170.22,14.6862]
[1721918051923,14.6796,170.31,170.15,29.3845]
[1721918052128,14.6796,170.31,170.21,5.8749]
[1721918052324,5.8731,170.27,170.22,5.8746]
[1721918052544,5.8726,170.28,170.23,5.8743]
[1721918052722,5.8722,170.3,170.24,5.8739]
[1721918052924,5.8723,170.29,170.25,5.8734]
[1721918053121,14.6789,170.32,170.23,14.6854]
[1721918053332,14.6789,170.32,170.2,5.875]
[1721918053333,5.874,170.25,170.2,5.875]
[1721918053530,16.404,170.33,170.21,14.687]
[1721918053753,16.404,170.33,170.23,14.6854]
[1721918053754,14.6776,170.33,170.23,14.6854]
[1721918053958,4.66112592,170.35,170.21,1.17472846]
[1721918054150,16.0497,170.39,170.24,3.15075635]
[1721918054327,57.2669,170.46,170.35,5.8701]
[1721918054523,16.3069,170.46,170.38,5.869]
[1721918054744,40.96,170.5,170.37,14.6737]
[1721918054927,29.3289,170.49,170.37,14.6737]
[1721918055132,5.8689,170.39,170.34,20.547]
[1721918055335,14.6677,170.45,170.35,5.8701]
[1721918055529,14.6677,170.45,170.37,5.8695]
[1721918055930,14.6677,170.45,170.35,5.8699]
[1721918055931,5.8682,170.41,170.35,5.8699]
[1721918056133,14.6677,170.45,170.34,14.6765]
[1721918056448,14.6677,170.45,170.34,20.5471]
[1721918056752,14.6695,170.43,170.31,5.8713]
[1721918056937,40.1647,170.46,170.26,14.6825]
[1721918056938,14.6715,170.4,170.26,14.6825]
[1721918057254,45.0,170.39,170.29,14.6807]
[1721918057440,5.8698,170.37,170.32,5.8711]
[1721918057624,45.0,170.36,170.32,5.8711]
[1721918057826,5.8706,170.34,170.29,22.52854169]
[1721918058024,45.0,170.33,170.26,14.6834]
[1721918058244,5.8726,170.28,170.23,5.8741]
[1721918058454,14.6766,170.34,170.22,20.561]
[1721918058455,5.873,170.27,170.22,20.561]
[1721918058628,5.8727,170.28,170.22,20.561]
[1721918058830,45.0,170.36,170.22,14.6864]
[1721918058831,45.0,170.27,170.22,14.6864]
[1721918059032,5.8738,170.25,170.19,5.8754]
[1721918059255,45.0,170.24,170.18,14.6895]
[1721918059456,45.0,170.24,170.2,5.8754]
[1721918059661,5.8733,170.27,170.2,14.6878]
[1721918059958,5.8733,170.27,170.13,14.6942]
[1721918059959,41.05,170.25,170.13,14.6942]
[1721918060166,14.6862,170.23,170.1,5.8788]
[1721918060325,45.0,170.22,170.05,1.97442398]
[1721918060530,45.0,170.22,170.09,49.3954]
[1721918060753,6.4871,170.38,170.22,14.6867]
[1721918060931,5.8719,170.3,170.25,5.8736]
[1721918061136,14.6755,170.36,170.26,5.8733]
[1721918061356,47.5371,170.38,170.25,14.6839]
[1721918061538,47.5371,170.38,170.28,14.6813]
[1721918061738,6.4871,170.38,170.28,14.6813]
[1721918061956,5.8706,170.34,170.28,20.5536]
[1721918062138,5.8718,170.31,170.24,14.6845]
[1721918062339,14.6745,170.37,170.24,14.6845]
[1721918062537,14.6745,170.37,170.27,5.8729]
[1721918063049,6.4871,170.38,170.25,5.8734]
[1721918063238,5.872,170.3,170.23,14.6856]
[1721918063444,5.872,170.3,170.24,5.8739]
[1721918063766,6.4871,170.38,170.27,5.8729]
[1721918063767,5.8709,170.33,170.27,5.8729]
[1721918064058,14.6748,170.36,170.26,14.6833]
[1721918064362,5.8712,170.33,170.26,14.6833]
[1721918064860,5.8712,170.33,170.27,5.8727]
[1721918065042,6.4871,170.38,170.29,14.6801]
[1721918065243,6.4871,170.38,170.25,1.17434457]
[1721918065545,14.6705,170.41,170.26,1.97588978]
[1721918065759,14.6705,170.41,170.28,14.6809]
[1721918065760,5.8713,170.32,170.28,14.6809]
[1721918065950,5.8713,170.32,170.26,7.84888978]
[1721918066151,14.6732,170.38,170.26,7.84888978]
[1721918066152,5.8716,170.31,170.26,1.97588978]
[1721918066445,5.8716,170.31,170.24,44.0537]
[1721918066756,45.0,170.3,170.26,5.873]
[1721918066944,14.6757,170.35,170.24,14.6844]
[1721918066945,45.0,170.31,170.24,20.5581]
[1721918067141,45.0,170.31,170.24,14.6844]
[1721918067366,45.0,170.31,170.26,5.8733]
[1721918067569,50.8716,170.31,170.26,5.8733]
[1721918068271,5.8721,170.3,170.25,5.8736]
[1721918068567,50.8724,170.29,170.24,14.6844]
[1721918068746,45.0,170.31,170.24,14.6844]
[1721918068955,45.0,170.28,170.24,20.5583]
[1721918069172,45.0,170.28,170.25,5.8736]
[1721918069674,45.0,170.28,170.24,14.6844]
[1721918069873,45.0,170.28,170.24,20.5581]
[1721918070067,50.8724,170.29,170.24,14.6844]
[1721918070264,45.0,170.29,170.24,14.6844]
[1721918070471,50.8723,170.29,170.24,20.5583]
[1721918070667,5.8713,170.32,170.26,5.8733]
[1721918070866,15.7772,170.45,170.27,1.17462257]
[1721918071166,15.7772,170.45,170.38,5.8692]
[1721918071481,5.8679,170.42,170.37,5.8695]
[1721918071783,5.8678,170.42,170.37,5.8695]
[1721918072088,14.6645,170.48,170.39,5.8688]
[1721918072967,6.0228,170.49,170.39,14.6719]
[1721918073170,6.0228,170.49,170.4,1.17358586]
[1721918073368,5.8662,170.47,170.42,5.8677]
[1721918073673,6.0228,170.49,170.31,5.8716]
[1721918073674,5.8697,170.37,170.31,5.8716]
[1721918073973,5.8712,170.33,170.28,1.97565771]
[1721918074194,41.05,170.45,170.28,1.97565771]
[1721918074355,5.8668,170.46,170.29,1.17411977]
[1721918074560,49.49262899,170.49,170.39,14.6714]
[1721918074561,5.8661,170.47,170.39,14.6714]
[1721918074799,6.0228,170.49,170.3,23.1491441]
[1721918075082,6.0228,170.49,170.31,1.9753097]
[1721918075083,5.8665,170.46,170.31,1.9753097]
[1721918075252,5.8665,170.46,170.32,1.17363649]
[1721918075456,11.8885,170.49,170.41,14.6702]
[1721918075785,41.3128,170.49,170.37,14.6733]
[1721918076076,41.3128,170.49,170.33,14.6767]
[1721918076077,5.8695,170.37,170.33,14.6767]
[1721918076282,5.8695,170.37,170.31,5.8715]
[1721918076462,5.8695,170.37,170.26,22.5448]
[1721918076463,5.8689,170.39,170.33,5.8708]
[1721918076666,49.9581,170.44,170.32,14.6777]
[1721918076886,45.0,170.43,170.34,5.8705]
[1721918077074,45.0,170.43,170.35,14.6755]
[1721918077075,50.8677,170.43,170.35,14.6755]
[1721918077262,6.0228,170.49,170.4,5.8683]
[1721918077462,6.0228,170.49,170.38,14.6728]
[1721918077668,5.8671,170.45,170.38,20.5417]
[1721918077863,5.8673,170.44,170.39,5.8687]
[1721918078090,35.29,170.48,170.38,14.6728]
[1721918078290,49.9562,170.46,170.34,14.6757]
[1721918078466,5.8699,170.36,170.3,20.551]
[1721918078793,14.6713,170.41,170.3,14.6791]
[1721918079092,14.6679,170.44,170.34,5.8705]
[1721918079262,5.8688,170.39,170.32,14.6774]
[1721918079458,50.8695,170.38,170.32,20.5483]
[1721918079663,5.8695,170.38,170.32,14.6774]
[1721918079881,5.8702,170.36,170.31,1.9753097]
[1721918080064,45.0,170.35,170.31,1.9753097]
[1721918080265,50.8703,170.35,170.31,1.9753097]
[1721918080465,45.0,170.35,170.24,29.3686]
[1721918080682,45.0,170.36,170.26,14.6833]
[1721918080880,45.0,170.36,170.29,14.6806]
[1721918081089,21.15,170.42,170.26,1.97588978]
[1721918081090,6.4796,170.42,170.32,14.6782]
[1721918081393,12.3477,170.42,170.33,1.17411311]
[1721918081567,12.3477,170.42,170.36,5.8697]
[1721918082087,15.6885,170.45,170.34,14.6757]
[1721918082272,15.6885,170.45,170.37,14.6736]
[1721918082273,5.8674,170.44,170.37,14.6736]
[1721918082466,5.8668,170.45,170.39,5.8687]
[1721918082773,5.8672,170.44,170.37,14.6736]
[1721918082979,6.4796,170.47,170.4,5.8685]
[1721918083290,5.8669,170.45,170.39,5.8688]
[1721918083885,6.4796,170.47,170.39,5.8688]
[1721918083886,5.8672,170.44,170.39,5.8688]
[1721918084272,12.346,170.47,170.41,5.8679]
[1721918084596,5.8665,170.46,170.4,20.5394]
[1721918085269,51.4646,170.51,170.4,14.6709]
[1721918085476,16.1746,170.51,170.43,14.6687]
[1721918085682,5.8647,170.51,170.46,5.8664]
[1721918085997,5.8651,170.5,170.44,5.8668]
[1721918086184,6.4191,170.52,170.43,14.6687]
[1721918086388,5.8661,170.47,170.43,14.6687]
[1721918086982,49.9519,170.51,170.4,14.6712]
[1721918087188,80.29,170.5,170.4,14.6712]
[1721918087391,80.29,170.5,170.37,14.6739]
[1721918087594,6.4191,170.52,170.38,1.97449815]
[1721918087800,5.8658,170.48,170.43,5.8674]
[1721918087977,21.0802,170.52,170.43,14.6684]
[1721918088178,21.0802,170.52,170.38,1.97449815]
[1721918088179,5.8679,170.42,170.38,1.97449815]
[1721918088379,14.6643,170.49,170.38,1.97449815]
[1721918088682,5.8669,170.45,170.38,1.97449815]
[1721918088897,45.0,170.44,170.38,1.97449815]
[1721918089090,5.8682,170.41,170.36,5.8698]
[1721918089306,45.0,170.4,170.36,5.8698]
[1721918089477,45.0,170.4,170.37,5.8695]
[1721918089677,45.0,170.41,170.36,5.8699]
[1721918089999,35.29,170.48,170.37,5.8693]
[1721918090296,35.29,170.48,170.3,30.53265326]
[1721918090297,5.8671,170.44,170.38,5.869]
[1721918090496,45.0,170.43,170.35,14.675]
[1721918090798,5.8681,170.42,170.35,5.8701]
[1721918090972,49.9574,170.45,170.34,14.6763]
[1721918090973,45.0,170.41,170.34,14.6763]
[1721918091176,45.0,170.41,170.36,5.8698]
[1721918091389,45.0,170.41,170.3,29.3587]
[1721918091390,45.0,170.41,170.37,14.6734]
[1721918091705,5.8653,170.5,170.43,5.8674]
[1721918091927,35.29,170.51,170.4,14.6709]
[1721918092078,22.0492,170.52,170.35,29.3506]
[1721918092079,5.8664,170.47,170.41,5.8678]
[1721918092398,5.8664,170.46,170.41,5.8678]
[1721918092596,5.8664,170.46,170.35,14.675]
[1721918092597,33.52,170.46,170.35,14.675]
[1721918092798,5.868,170.42,170.36,5.8698]
[1721918092998,68.81,170.46,170.35,20.5452]
[1721918093225,68.81,170.46,170.31,14.6787]
[1721918093226,5.8694,170.38,170.31,14.6787]
[1721918093526,45.0,170.37,170.31,20.55]
[1721918093708,45.0,170.37,170.32,5.8712]
[1721918094097,45.0,170.37,170.26,14.6829]
[1721918094517,5.8706,170.35,170.29,5.8723]
[1721918094827,45.0,170.34,170.29,14.6806]
[1721918094993,45.0,170.34,170.33,5.8709]
[1721918095199,39.3892,170.38,170.33,5.8709]
[1721918095393,39.3892,170.38,170.27,14.6822]
[1721918095394,45.0,170.37,170.27,14.6822]
[1721918095618,50.8697,170.37,170.27,16.65797374]
[1721918095919,45.0,170.37,170.34,5.8705]
[1721918096133,45.0,170.37,170.33,14.6769]
[1721918096312,45.0,170.37,170.29,20.5528]
[1721918096624,50.8697,170.37,170.31,5.8715]
[1721918096820,45.0,170.37,170.29,14.6806]
[1721918097016,59.674,170.37,170.27,1.97577374]
[1721918097315,45.0,170.37,170.27,1.97577374]
[1721918097620,80.29,170.37,170.21,22.8134]
[1721918097923,80.29,170.37,170.27,5.8729]
[1721918097924,33.52,170.34,170.27,5.8729]
[1721918098123,6.1249,170.4,170.27,1.97577374]
[1721918098295,6.1249,170.4,170.26,29.366]
[1721918098296,6.1249,170.4,170.28,3.14984239]
[1721918098496,6.1249,170.4,170.33,14.6767]
[1721918098700,5.8688,170.39,170.33,20.5474]
[1721918099206,6.1249,170.4,170.34,5.8705]
[1721918099431,5.8681,170.42,170.33,14.6767]
[1721918099929,41.4184,170.45,170.34,5.8702]
[1721918100096,41.4184,170.45,170.33,14.6767]
[1721918100513,35.29,170.42,170.3,5.8719]
[1721918100697,5.8697,170.37,170.31,5.8715]
[1721918100897,50.8699,170.36,170.29,14.6805]
[1721918101125,5.8702,170.35,170.29,14.6805]
[1721918101422,33.52,170.4,170.32,14.6773]
[1721918101604,5.868,170.42,170.36,5.8698]
[1721918101806,6.1284,170.45,170.3,1.17403512]
[1721918102022,5.8674,170.44,170.38,14.6727]
[1721918102326,33.52,170.46,170.38,20.5417]
[1721918102499,33.52,170.46,170.35,5.87]
[1721918102704,49.9574,170.45,170.34,14.6762]
[1721918103004,49.9574,170.45,170.31,1.9753097]
[1721918103005,6.1377347,170.47,170.32,1.17408497]
[1721918103210,6.1377347,170.47,170.31,1.9753097]
[1721918103211,33.52,170.52,170.35,1.17408497]
[1721918103511,33.52,170.52,170.43,14.668]
[1721918103512,6.13553697,170.51,170.43,14.668]
[1721918103734,6.13553697,170.51,170.36,3.14810998]
[1721918103907,5.8653,170.5,170.43,5.8674]
[1721918104109,6.13553697,170.51,170.44,5.8671]
[1721918104417,5.8654,170.5,170.43,5.8675]
[1721918105036,41.97642063,170.64,170.46,5.8663]
[1721918105037,29.7257,170.57,170.46,5.8663]
[1721918105333,5.8641,170.53,170.45,14.6669]
[1721918105514,5.8644,170.52,170.45,14.6669]
[1721918105831,6.13424769,170.53,170.41,14.6699]
[1721918106032,14.6591,170.55,170.43,5.8675]
[1721918106231,5.8658,170.48,170.42,5.8678]
[1721918106403,6.4079,170.56,170.42,5.8678]
[1721918106404,50.8664,170.47,170.42,5.8678]
[1721918106612,45.0,170.47,170.42,5.8678]
[1721918107536,5.8678,170.42,170.41,1.97415054]
[1721918107715,50.8678,170.42,170.41,1.97415054]
[1721918107914,45.0,170.42,170.29,21.1604]
[1721918108119,5.8697,170.37,170.29,21.1604]
[1721918108321,47.2308,170.44,170.32,14.6774]
[1721918108614,5.8677,170.43,170.35,14.6755]
[1721918108946,16.1664,170.46,170.4,5.8684]
[1721918108947,5.8668,170.45,170.4,5.8684]
[1721918109241,5.869,170.39,170.34,20.5463]
[1721918109407,14.6679,170.44,170.34,14.6758]
[1721918109610,5.8682,170.41,170.35,5.8699]
[1721918109810,14.6679,170.44,170.3,14.6792]
[1721918110341,14.6679,170.44,170.3,15.8533686]
[1721918110342,14.6704,170.42,170.3,15.8533686]
[1721918110545,5.8699,170.37,170.31,5.8716]
[1721918110839,45.0,170.43,170.32,1.17404791]
[1721918111035,5.8683,170.41,170.36,14.6745]
[1721918111213,5.8675,170.43,170.37,7.04329623]
[1721918111411,16.1664,170.46,170.35,5.8699]
[1721918111604,5.8684,170.41,170.35,14.6755]
[1721918111809,14.667,170.45,170.35,14.6755]
[1721918112010,5.8688,170.4,170.35,14.6755]
[1721918112211,14.667,170.45,170.35,20.5455]
[1721918112536,16.1664,170.46,170.35,20.5455]
[1721918112537,5.8677,170.43,170.37,5.8694]
[1721918112707,45.0,170.42,170.31,14.6782]
[1721918112907,80.29,170.42,170.31,14.6782]
[1721918113107,5.8719,170.31,170.25,16.1641]
[1721918113319,80.29,170.42,170.25,16.1641]
[1721918113320,5.8712,170.33,170.26,5.8733]
[1721918113519,41.3229,170.39,170.25,16.1641]
[1721918113520,6.0329,170.39,170.27,1.17444804]
[1721918113821,46.97122091,170.38,170.25,16.1641]
[1721918114031,46.97122091,170.38,170.23,7.76315121]
[1721918114232,46.97122091,170.38,170.19,16.12804849]
[1721918114233,51.7605,170.37,170.24,20.5587]
[1721918114533,51.7605,170.37,170.19,15.1127]
[1721918114534,90.9258,170.35,170.23,5.8743]
[1721918114732,5.8727,170.28,170.22,5.8747]
[1721918114947,35.29,170.33,170.21,14.6877]
[1721918115112,5.8741,170.24,170.17,44.0724]
[1721918115309,5.8741,170.24,170.18,5.8761]
[1721918116032,6.5255,170.27,170.17,14.6905]
[1721918116334,5.8758,170.19,170.13,14.6939]
[1721918116534,49.9744,170.25,170.16,14.692]
[1721918116535,14.6844,170.25,170.16,14.692]
[1721918116717,14.6844,170.25,170.09,6.2387]
[1721918116718,45.0,170.24,170.2,5.8751]
[1721918116917,5.8743,170.24,170.19,20.5651]
[1721918117144,45.0,170.23,170.19,14.6894]
[1721918117430,5.8743,170.24,170.19,14.6894]
[1721918117737,5.8754,170.2,170.15,14.6921]
[1721918117911,45.0,170.23,170.15,20.5689]
[1721918118108,5.8747,170.23,170.17,5.8762]
[1721918118319,50.8734,170.26,170.2,5.8751]
[1721918118523,5.8738,170.25,170.2,14.6883]
[1721918118745,45.0,170.26,170.2,14.6883]
[1721918118746,45.0,170.24,170.2,14.6883]
[1721918118943,45.0,170.24,170.13,1.17502451]
[1721918119134,12.3988,170.27,170.21,5.875]
[1721918119331,50.8734,170.26,170.21,5.875]
[1721918119522,5.8729,170.28,170.2,14.6883]
[1721918119724,5.8729,170.28,170.16,29.3827]
[1721918119725,5.8722,170.3,170.24,5.874]
[1721918120046,15.0274,170.32,170.16,30.55740378]
[1721918120249,5.8737,170.25,170.2,5.8754]
[1721918120545,52.28862091,170.32,170.15,14.6924]
[1721918120738,1.97122091,170.31,170.15,20.5693]
[1721918120940,14.6842,170.26,170.15,21.74470153]
[1721918121246,5.8747,170.22,170.15,14.6924]
[1721918121541,14.6809,170.29,170.21,5.8749]
[1721918121542,45.0,170.25,170.21,5.8749]
[1721918121744,5.874,170.24,170.19,5.8757]
[1721918121963,45.0,170.26,170.09,7.41373803]
[1721918121964,45.0,170.23,170.09,7.41373803]
[1721918122151,14.6868,170.23,170.13,14.6945]
[1721918122346,45.0,170.22,170.15,14.6922]
[1721918122645,5.8755,170.2,170.15,14.6922]
[1721918122851,5.8729,170.28,170.22,5.8744]
[1721918123150,1.97122091,170.31,170.24,5.8739]
[1721918123448,1.97122091,170.31,170.22,14.6861]
[1721918123449,5.8728,170.28,170.22,20.5605]
[1721918123625,5.8724,170.29,170.23,5.8742]
[1721918123826,14.6749,170.36,170.23,1.1746631]
[1721918124057,14.6749,170.36,170.24,1.17449322]
[1721918124350,5.8703,170.35,170.29,5.8723]
[1721918124536,5.8699,170.36,170.3,7.04602549]
[1721918124734,5.8696,170.37,170.3,1.17422549]
[1721918124936,6.13958961,170.38,170.32,14.6774]
[1721918125245,6.0563,170.45,170.34,20.546]
[1721918125547,5.8685,170.4,170.35,5.8701]
[1721918125763,6.0563,170.45,170.34,14.6758]
[1721918125931,5.8675,170.43,170.38,14.6722]
[1721918126134,6.0563,170.45,170.39,5.8688]
[1721918126135,5.867,170.45,170.39,5.8688]
[1721918126334,5.867,170.45,170.4,5.8685]
[1721918126568,6.13638919,170.47,170.4,7.04206555]
[1721918126746,5.8667,170.46,170.4,7.04206555]
[1721918127051,14.6663,170.46,170.32,6.3568]
[1721918127356,14.6688,170.43,170.32,6.3568]
[1721918127542,40.96,170.46,170.32,6.3568]
[1721918127543,5.8685,170.4,170.35,5.8701]
[1721918127744,5.8685,170.4,170.33,14.677]
[1721918128057,5.8685,170.4,170.34,5.8703]
[1721918128549,5.8685,170.4,170.35,5.8701]
[1721918129053,40.96,170.46,170.33,14.677]
[1721918129256,5.8683,170.41,170.35,5.8699]
[1721918129491,29.3306,170.48,170.33,15.85072684]
[1721918129492,6.1723,170.5,170.34,1.17371929]
[1721918129765,5.8685,170.4,170.34,1.17356721]
[1721918130049,5.869,170.39,170.35,1.17369027]
[1721918130254,14.6662,170.46,170.32,6.3568]
[1721918130255,14.6662,170.46,170.34,5.8703]
[1721918130458,5.8686,170.4,170.34,5.8703]
[1721918130764,1.97122091,170.5,170.35,40.0]
[1721918130961,5.8662,170.47,170.4,14.6712]
[1721918131266,76.25,170.55,170.42,14.6689]
[1721918131565,55.6192,170.55,170.43,1.17327047]
[1721918131763,5.8648,170.51,170.45,5.8664]
[1721918131971,5.8651,170.5,170.46,1.17311069]
[1721918132142,6.13420832,170.54,170.43,5.8672]
[1721918132472,6.13420832,170.54,170.41,14.6703]
[1721918132473,14.6608,170.53,170.41,14.6703]
[1721918132650,14.6628,170.5,170.38,1.17315499]
[1721918132848,14.6628,170.5,170.37,15.84707142]
[1721918133063,5.8671,170.44,170.38,5.8689]
[1721918133272,14.6628,170.5,170.39,15.84494414]
[1721918133469,14.6603,170.53,170.37,1.17334989]
[1721918133778,5.8654,170.49,170.44,5.8669]
[1721918133954,5.8656,170.49,170.44,14.6671]
[1721918134160,14.6601,170.54,170.44,15.84035255]
[1721918134375,5.8654,170.49,170.45,1.17311264]
[1721918134577,5.8651,170.5,170.45,7.03991264]
[1721918134860,5.8651,170.5,170.45,5.8668]
[1721918135485,5.8654,170.49,170.44,20.5342]
[1721918136162,14.6601,170.54,170.44,5.8671]
[1721918136358,5.8651,170.5,170.45,5.8667]
[1721918136959,45.0,170.53,170.44,14.6678]
[1721918137182,45.0,170.53,170.41,1.17314316]
[1721918137183,14.6619,170.51,170.42,5.8675]
[1721918137389,5.8638,170.54,170.45,1.17329817]
[1721918137561,5.8635,170.55,170.5,5.8648]
[1721918137763,5.8637,170.54,170.49,5.8653]
[1721918137962,5.864,170.53,170.48,20.5293]
[1721918138158,29.3078,170.61,170.48,14.6636]
[1721918138159,43.9612,170.61,170.48,14.6636]
[1721918138384,48.1334,170.61,170.5,14.6619]
[1721918138560,5.8633,170.56,170.51,5.8647]
[1721918138764,48.1334,170.61,170.5,14.6619]
[1721918138963,5.863,170.57,170.51,5.8647]
[1721918139294,33.48,170.61,170.46,1.17270384]
[1721918139457,5.8634,170.55,170.5,5.8648]
[1721918139662,5.863,170.56,170.51,5.8647]
[1721918139889,5.863,170.56,170.51,5.8646]
[1721918140063,5.8627,170.57,170.52,5.8643]
[1721918140263,14.6557,170.59,170.49,14.6629]
[1721918140478,5.863,170.56,170.51,5.8647]
[1721918140787,5.8617,170.6,170.49,30.49887979]
[1721918140993,5.862,170.59,170.54,20.5219]
[1721918141369,5.862,170.59,170.54,14.6585]
[1721918141884,5.8633,170.56,170.5,20.5267]
[1721918142185,5.8629,170.57,170.51,5.8644]
[1721918142390,48.1325,170.62,170.5,14.6619]
[1721918142692,5.8627,170.57,170.52,5.8643]
[1721918143092,48.1325,170.62,170.5,14.6619]
[1721918143267,5.863,170.56,170.51,5.8646]
[1721918143585,14.6547,170.6,170.5,14.6619]
[1721918143764,5.8631,170.56,170.5,14.6619]
[1721918143965,0.7987949,170.65,170.51,1.17276131]
[1721918144198,0.7987949,170.65,170.48,49.3277]
[1721918144199,5.8612,170.62,170.56,5.8629]
[1721918144373,5.8612,170.62,170.57,5.8624]
[1721918144881,5.8613,170.61,170.56,5.863]
[1721918145093,0.7987949,170.65,170.57,5.8625]
[1721918145094,5.8608,170.63,170.57,5.8625]
[1721918145293,0.7987949,170.65,170.56,5.863]
[1721918145604,5.8621,170.59,170.55,14.6576]
[1721918145776,5.8616,170.6,170.55,14.6576]
[1721918145970,5.8616,170.6,170.55,20.5209]
[1721918146370,5.8624,170.58,170.52,20.5249]
[1721918146571,5.8627,170.57,170.52,20.5249]
[1721918146771,14.6521,170.63,170.53,5.8639]
[1721918147073,45.0,170.62,170.52,14.6608]
[1721918147272,14.6544,170.6,170.48,14.6637]
[1721918147476,5.8626,170.58,170.51,14.6615]
[1721918147699,5.862,170.59,170.53,5.864]
[1721918147872,45.0,170.58,170.53,5.864]
[1721918148072,50.8624,170.58,170.53,5.864]